bitfinex/quotes_BTCUSD_20241024
["timestamp","ask_amount","ask_price","bid_price","bid_amount"]
[1729807930921,0.01365115,68466.0,68464.0,0.146062]
[1729807931092,0.146056,68467.0,68462.0,0.29656881]
[1729807931294,0.01364999,68465.0,68462.0,0.29656881]
[1729807931457,0.15499501,68469.0,68462.0,0.15050381]
[1729807931668,0.1574274,68468.0,68464.0,0.146061]
[1729807932260,0.0113734,68468.0,68463.0,0.51100226]
[1729807932470,0.0113734,68468.0,68467.0,0.14688106]
[1729807932693,0.0113734,68468.0,68467.0,0.29738487]
[1729807932916,0.000827,68470.0,68469.0,0.14687706]
[1729807933131,0.000827,68470.0,68469.0,0.29738087]
[1729807938604,0.000827,68470.0,68469.0,0.29655481]
[1729807938864,0.369126,68470.0,68464.0,0.00082606]
[1729807939078,0.369126,68470.0,68465.0,0.15050381]
[1729807939079,0.146051,68469.0,68465.0,0.15050381]
[1729807939525,0.146051,68469.0,68465.0,0.29656281]
[1729807939526,0.01179806,68468.0,68465.0,0.29656281]
[1729807940152,0.223076,68470.0,68465.0,0.29656281]
[1729807940357,0.0117969,68467.0,68465.0,0.29656281]
[1729807940581,0.223076,68470.0,68465.0,0.29656281]
[1729807940801,0.01179574,68466.0,68465.0,0.29656281]
[1729807941238,0.077027,68470.0,68465.0,0.29656281]
[1729807941499,0.01179574,68466.0,68465.0,0.29656281]
[1729807941705,0.000827,68470.0,68466.0,0.292112]
[1729807941923,0.01179921,68469.0,68468.0,0.14687906]
[1729807942123,0.000827,68470.0,68468.0,0.14687906]
[1729807942124,0.000827,68470.0,68469.0,0.14687706]
[1729807942339,0.000827,68470.0,68469.0,0.29738087]
[1729807943867,0.000827,68470.0,68469.0,0.30194689]
[1729807944107,0.000827,68470.0,68469.0,0.3065129]
[1729807945706,0.000827,68470.0,68469.0,0.30194689]
[1729807948858,0.000827,68470.0,68469.0,0.29738087]
[1729807949092,0.000827,68470.0,68469.0,0.30194677]
[1729807950964,0.000827,68470.0,68469.0,0.29738087]
[1729807952539,0.0829,68466.0,68462.0,0.04368058]
[1729807952748,0.0829,68466.0,68457.0,0.10920145]
[1729807952749,0.146066,68462.0,68457.0,0.36494926]
[1729807952969,0.292132,68462.0,68457.0,0.21887426]
[1729807953192,0.01177439,68461.0,68457.0,0.21887426]
[1729807953402,0.01177439,68461.0,68460.0,0.14607]
[1729807953639,0.292128,68464.0,68456.0,0.00082606]
[1729807953891,0.0829,68466.0,68456.0,0.00082606]
[1729807953892,0.01177439,68461.0,68457.0,0.146077]
[1729807954111,0.146068,68462.0,68457.0,0.146077]
[1729807954361,0.146068,68462.0,68457.0,0.29658081]
[1729807954362,0.0119095,68460.0,68457.0,0.29658081]
[1729807954577,0.146068,68462.0,68457.0,0.29658081]
[1729807954832,0.01190993,68459.0,68457.0,0.29658081]
[1729807955053,0.146068,68462.0,68457.0,0.29658081]
[1729807955287,0.292128,68463.0,68453.0,0.00082606]
[1729807955288,0.01190957,68458.0,68453.0,0.00082606]
[1729807955506,0.54662301,68463.0,68454.0,0.29658681]
[1729807955721,0.01188359,68457.0,68454.0,0.29658681]
[1729807955943,0.146076,68458.0,68454.0,0.15050381]
[1729807956163,0.01188359,68456.0,68454.0,0.15050381]
[1729807956383,0.146076,68458.0,68454.0,0.15050381]
[1729807956599,0.01188359,68455.0,68454.0,0.15050381]
[1729807956819,0.292132,68462.0,68455.0,0.292161]
[1729807957076,0.01188475,68455.0,68454.0,0.29658581]
[1729807957287,0.146073,68459.0,68454.0,0.29658581]
[1729807957505,0.08848475,68455.0,68454.0,0.15050381]
[1729807957721,0.08848475,68455.0,68454.0,0.29658681]
[1729807957722,0.0766,68455.0,68454.0,0.29658681]
[1729807957939,0.01188475,68455.0,68454.0,0.29658681]
[1729807958408,0.0766,68459.0,68455.0,0.146081]
[1729807959299,0.0766,68459.0,68455.0,0.438243]
[1729807959531,0.0766,68459.0,68454.0,0.15050381]
[1729807959963,0.222673,68459.0,68454.0,0.29658681]
[1729807960392,0.01187188,68458.0,68454.0,0.29658681]
[1729807960849,0.01187188,68458.0,68455.0,0.14608]
[1729807961067,0.01187188,68458.0,68454.0,0.15050381]
[1729807961724,0.01187188,68458.0,68454.0,0.29658581]
[1729807962382,0.01187188,68458.0,68456.0,0.146078]
[1729807962604,0.01187188,68458.0,68454.0,0.15050381]
[1729807962832,0.01187188,68458.0,68457.0,0.146077]
[1729807963028,0.01187188,68458.0,68454.0,0.15050381]
[1729807963241,0.01187188,68458.0,68455.0,0.146081]
[1729807964297,0.01187188,68458.0,68455.0,0.15064807]
[1729807966716,0.01187188,68458.0,68455.0,0.146081]
[1729807966913,0.01187188,68458.0,68456.0,0.00456686]
[1729807968935,0.01187188,68458.0,68455.0,0.146081]
[1729807969153,0.01187188,68458.0,68457.0,0.146077]
[1729807969363,0.01187188,68458.0,68457.0,0.30032815]
[1729807969572,0.00219082,68466.0,68465.0,0.14606]
[1729807970721,0.000827,68470.0,68466.0,0.146055]
[1729807970937,0.000827,68470.0,68468.0,0.146052]
[1729807971450,0.000827,68470.0,68466.0,0.292115]
[1729807971657,0.000827,68470.0,68467.0,0.146054]
[1729807971880,0.000827,68470.0,68469.0,0.146051]
[1729807972096,0.000827,68470.0,68468.0,0.146053]
[1729807972311,0.000827,68470.0,68466.0,0.44261881]
[1729807972542,0.000827,68470.0,68467.0,0.146055]
[1729807975417,0.01185881,68469.0,68466.0,0.15050381]
[1729807975841,0.00219105,68467.0,68466.0,0.15050381]
[1729807976048,0.01185881,68469.0,68466.0,0.15050381]
[1729807976269,0.146876,68470.0,68460.0,0.14689606]
[1729807976270,0.146062,68464.0,68460.0,0.14689606]
[1729807976482,0.44710601,68467.0,68461.0,0.15050381]
[1729807976698,0.15792589,68463.0,68461.0,0.15050381]
[1729807976905,0.146065,68463.0,68461.0,0.15050381]
[1729807977118,0.01185973,68462.0,68461.0,0.15050381]
[1729807977772,0.146062,68464.0,68461.0,0.15050381]
[1729807977984,0.01185973,68462.0,68461.0,0.15050381]
[1729807978188,0.146062,68464.0,68461.0,0.15050381]
[1729807978404,0.44710601,68467.0,68461.0,0.29657181]
[1729807978405,0.01405097,68462.0,68461.0,0.29657181]
[1729807978614,0.00219124,68462.0,68461.0,0.15050381]
[1729807978879,0.146068,68461.0,68457.0,0.04367211]
[1729807979109,0.01405097,68462.0,68459.0,0.146072]
[1729807979326,0.01185741,68460.0,68459.0,0.146072]
[1729807979544,0.00219124,68462.0,68459.0,0.15050381]
[1729807979763,0.00219124,68462.0,68461.0,0.146068]
[1729807981330,0.222752,68469.0,68464.0,0.14606]
[1729807981331,0.0767,68469.0,68464.0,0.14606]
[1729807981552,0.000827,68470.0,68467.0,0.146055]
[1729807981765,0.000827,68470.0,68461.0,0.15050381]
[1729807981766,0.000827,68470.0,68466.0,0.146055]
[1729807981987,0.000827,68470.0,68466.0,0.15050381]
[1729807982205,0.146876,68470.0,68466.0,0.29655881]
[1729807983490,0.00219087,68467.0,68466.0,0.29655881]
[1729807984443,0.00219087,68467.0,68466.0,0.15050381]
[1729807984661,0.00219087,68467.0,68466.0,0.29656081]
[1729807985751,0.00219087,68467.0,68466.0,0.15050381]
[1729807987487,0.01310652,68467.0,68466.0,0.15050381]
[1729807988158,0.00219087,68467.0,68466.0,0.15050381]
[1729807990336,0.02495163,68467.0,68466.0,0.15050381]
[1729807990746,0.01403562,68467.0,68466.0,0.15050381]
[1729807991161,0.16009062,68467.0,68466.0,0.15050381]
[1729807991365,0.29212,68465.0,68460.0,0.0445449]
[1729807991594,0.01403562,68467.0,68461.0,0.15050381]
[1729807991595,0.146064,68464.0,68461.0,0.15050381]
[1729807991781,0.146066,68462.0,68461.0,0.15050381]
[1729807992219,0.15790573,68462.0,68461.0,0.15050381]
[1729807992423,0.01183973,68462.0,68461.0,0.15050381]
[1729807992751,0.146064,68464.0,68461.0,0.15050381]
[1729807992960,0.01183973,68462.0,68461.0,0.15050381]
[1729807993253,0.146064,68464.0,68461.0,0.15050381]
[1729807993487,0.15790659,68462.0,68461.0,0.15050381]
[1729807993714,0.15790659,68462.0,68457.0,0.18979384]
[1729807993715,0.292133,68462.0,68457.0,0.04371884]
[1729807993933,0.146072,68460.0,68457.0,0.19422265]
[1729807994392,0.01183797,68459.0,68457.0,0.19422265]
[1729807994612,0.146074,68458.0,68457.0,0.19422265]
[1729807994821,0.01183797,68459.0,68457.0,0.19422265]
[1729807995041,0.01183681,68458.0,68457.0,0.19422265]
[1729807995258,0.146071,68460.0,68457.0,0.19422265]
[1729807995718,0.01183883,68459.0,68457.0,0.19422265]
[1729807996350,0.01183883,68459.0,68457.0,0.34029865]
[1729807996557,0.01183883,68459.0,68458.0,0.04371884]
[1729807997035,0.30398483,68459.0,68458.0,0.21887426]
[1729807997252,0.30398483,68459.0,68452.0,0.08826374]
[1729807997253,0.146079,68456.0,68452.0,0.18980484]
[1729807997453,0.146084,68454.0,68451.0,0.04371884]
[1729807997664,0.146084,68454.0,68450.0,0.18980984]
[1729807997862,0.146084,68454.0,68450.0,0.34031365]
[1729807998072,0.01182407,68453.0,68451.0,0.146089]
[1729807998276,0.146088,68452.0,68450.0,0.15050381]
[1729807998488,0.01182407,68453.0,68450.0,0.15050381]
[1729807998714,0.146083,68455.0,68451.0,0.146088]
[1729807998916,0.292149,68458.0,68450.0,0.15050381]
[1729807999133,0.21887426,68461.0,68447.0,0.292193]
[1729807999134,0.15498073,68455.0,68447.0,0.292193]
[1729807999288,0.146089,68452.0,68447.0,0.15050381]
[1729807999511,0.146089,68452.0,68448.0,0.146094]
[1729808000051,0.146084,68454.0,68449.0,0.146092]
[1729808000259,0.077,68455.0,68449.0,0.146092]
[1729808000457,0.146085,68453.0,68449.0,0.146092]
[1729808000676,0.146087,68452.0,68449.0,0.146092]
[1729808001754,0.077,68455.0,68450.0,0.21887426]
[1729808001948,0.083426,68464.0,68450.0,0.15050381]
[1729808002295,0.083426,68464.0,68453.0,0.438256]
[1729808002296,0.146073,68459.0,68453.0,0.438256]
[1729808002498,0.292137,68461.0,68450.0,0.15050381]
[1729808002703,0.146076,68458.0,68451.0,0.292179]
[1729808002820,0.292145,68459.0,68453.0,0.146084]
[1729808003021,0.292145,68459.0,68452.0,0.15050381]
[1729808003022,0.146077,68457.0,68452.0,0.15050381]
[1729808003253,0.146077,68457.0,68454.0,0.146083]
[1729808003869,0.292145,68459.0,68454.0,0.146083]
[1729808004086,0.005,68463.0,68452.0,0.15050381]
[1729808004087,0.584264,68462.0,68452.0,0.15050381]
[1729808004294,0.146078,68457.0,68453.0,0.146085]
[1729808005453,0.01182755,68456.0,68453.0,0.146084]
[1729808006437,0.15790655,68456.0,68453.0,0.146084]
[1729808006663,0.15790655,68456.0,68452.0,0.29659081]
[1729808007846,0.16881579,68456.0,68452.0,0.29659081]
[1729808008280,0.01090924,68455.0,68452.0,0.15050381]
[1729808008502,0.146085,68453.0,68452.0,0.15050381]
[1729808008852,0.01401278,68453.0,68452.0,0.15050381]
[1729808009065,0.13088378,68454.0,68452.0,0.15050381]
[1729808009270,0.00985125,68453.0,68452.0,0.15050381]
[1729808013854,0.00985125,68453.0,68445.0,0.41833491]
[1729808013855,0.292181,68451.0,68445.0,0.04373191]
[1729808014065,0.438307,68445.0,68444.0,0.21887426]
[1729808014280,0.146102,68445.0,68444.0,0.21887426]
[1729808014483,0.146105,68444.0,68440.0,0.00248006]
[1729808014695,0.00979996,68443.0,68441.0,0.15050381]
[1729808015135,0.1461,68447.0,68441.0,0.29661381]
[1729808015344,0.00979886,68442.0,68441.0,0.15050381]
[1729808015551,0.146105,68444.0,68441.0,0.15050381]
[1729808015761,0.292188,68449.0,68442.0,0.146108]
[1729808015762,0.146098,68447.0,68442.0,0.146108]
[1729808015994,0.00980015,68443.0,68441.0,0.15050381]
[1729808016207,0.146103,68445.0,68441.0,0.15050381]
[1729808016412,0.00979985,68442.0,68441.0,0.15050381]
[1729808016614,0.146103,68445.0,68441.0,0.15050381]
[1729808016821,0.00979469,68442.0,68441.0,0.15050381]
[1729808017079,0.146091,68451.0,68445.0,0.1461]
[1729808017286,0.387656,68457.0,68450.0,0.14609]
[1729808017287,0.146082,68455.0,68450.0,0.14609]
[1729808017494,0.292157,68457.0,68449.0,0.0907]
[1729808017702,0.292157,68457.0,68451.0,0.146089]
[1729808017922,0.146081,68455.0,68451.0,0.146089]
[1729808018602,0.292157,68457.0,68449.0,0.24120381]
[1729808018603,0.00219125,68453.0,68450.0,0.146091]
[1729808019005,0.00219125,68453.0,68451.0,0.146088]
[1729808019219,0.00219125,68453.0,68449.0,0.38729681]
[1729808019693,0.00219125,68453.0,68450.0,0.146091]
[1729808019921,0.00219125,68453.0,68449.0,0.38729681]
[1729808020352,0.14827825,68453.0,68449.0,0.24120381]
[1729808020567,0.14827825,68453.0,68449.0,0.38729781]
[1729808020783,0.00982305,68452.0,68449.0,0.38894981]
[1729808021914,0.00982305,68452.0,68449.0,0.24285581]
[1729808022845,0.15591205,68452.0,68449.0,0.24285581]
[1729808025492,0.00982305,68452.0,68449.0,0.24285581]
[1729808026210,0.15591005,68452.0,68449.0,0.24285581]
[1729808026666,0.00982305,68452.0,68451.0,0.146089]
[1729808026889,0.00982305,68452.0,68449.0,0.24285581]
[1729808027124,0.00982305,68452.0,68450.0,0.44351287]
[1729808027338,0.00982305,68452.0,68451.0,0.14983653]
[1729808027559,0.000826,68464.0,68454.0,0.00082606]
[1729808027783,0.000826,68464.0,68458.0,0.146074]
[1729808028007,0.000826,68464.0,68458.0,0.29657781]
[1729808028236,0.146889,68464.0,68458.0,0.29657781]
[1729808028724,0.000826,68464.0,68458.0,0.29657781]
[1729808029172,0.000826,68464.0,68458.0,0.53369188]
[1729808029405,0.000826,68464.0,68458.0,0.90342387]
[1729808029630,0.000826,68464.0,68458.0,0.99084602]
[1729808031417,0.000826,68464.0,68458.0,0.99083564]
[1729808033411,0.000826,68464.0,68458.0,0.90342387]
[1729808034984,0.000826,68464.0,68458.0,0.90542387]
[1729808035231,0.000826,68464.0,68458.0,0.99283564]
[1729808036080,0.000826,68464.0,68458.0,0.99083564]
[1729808036299,0.000826,68464.0,68458.0,0.9907987]
[1729808036958,0.000826,68464.0,68458.0,0.9927987]
[1729808037176,0.000826,68464.0,68458.0,0.9907987]
[1729808037392,0.000826,68464.0,68458.0,0.9927987]
[1729808037618,0.000826,68464.0,68458.0,0.90542387]
[1729808038296,0.000826,68464.0,68463.0,0.49136993]
[1729808038514,0.000826,68464.0,68463.0,1.18006374]
[1729808038750,0.000826,68464.0,68463.0,1.02508301]
[1729808040343,0.000826,68464.0,68463.0,1.04808301]
[1729808040563,0.000826,68464.0,68463.0,1.07730301]
[1729808040782,0.000826,68464.0,68463.0,1.12277202]
[1729808042742,0.000826,68464.0,68463.0,1.07730301]
[1729808044226,0.000826,68464.0,68463.0,1.12732921]
[1729808045057,0.000826,68464.0,68463.0,1.12276399]
[1729808045259,0.000826,68464.0,68463.0,1.07730301]
[1729808046911,0.000826,68464.0,68463.0,1.12275412]
[1729808048415,0.000826,68464.0,68463.0,1.22435665]
[1729808049526,0.000826,68464.0,68463.0,1.17890554]
[1729808050752,0.000392,68464.0,68463.0,1.17890554]
[1729808051563,0.000392,68464.0,68463.0,1.17690554]
[1729808052338,0.0787,68490.0,68489.0,0.14683406]
[1729808052495,0.21887426,68493.0,68492.0,0.14682806]
[1729808052697,0.0787,68499.0,68492.0,0.14682806]
[1729808052698,0.0787,68499.0,68498.0,0.145989]
[1729808052937,0.0787,68499.0,68498.0,0.3989214]
[1729808053159,0.000826,68501.0,68500.0,0.14681106]
[1729808053356,0.000826,68501.0,68500.0,0.73527487]
[1729808055970,0.000826,68501.0,68500.0,0.73727487]
[1729808056397,0.32715749,68501.0,68500.0,0.43796]
[1729808056605,0.47314049,68501.0,68500.0,0.43796]
[1729808057000,0.47814049,68501.0,68500.0,0.43796]
[1729808057621,0.48033051,68501.0,68500.0,0.43796]
[1729808060222,0.32559902,68501.0,68500.0,0.43796]
[1729808065403,0.33639088,68501.0,68500.0,0.43796]
[1729808069970,0.34639088,68501.0,68500.0,0.43796]
[1729808070172,0.44639088,68501.0,68500.0,0.43796]
[1729808073063,0.45725111,68501.0,68500.0,0.43796]
[1729808073715,0.44639088,68501.0,68500.0,0.43796]
[1729808075439,0.43639088,68501.0,68500.0,0.43796]
[1729808075680,0.44639088,68501.0,68500.0,0.43796]
[1729808079223,0.34639088,68501.0,68500.0,0.43796]
[1729808079452,0.34310718,68501.0,68500.0,0.43796]
[1729808079899,0.24801716,68501.0,68500.0,0.43796]
[1729808080100,0.00833416,68501.0,68500.0,0.43796]
[1729808080318,0.00833416,68501.0,68500.0,0.583945]
[1729808080534,0.01052401,68501.0,68500.0,0.583945]
[1729808080747,0.00301585,68501.0,68500.0,0.679445]
[1729808081599,0.02140636,68501.0,68500.0,0.679445]
[1729808081804,0.01388778,68501.0,68500.0,0.679445]
[1729808082039,0.02140636,68501.0,68500.0,0.679445]
[1729808082259,0.01053443,68501.0,68500.0,0.53346]
[1729808086651,0.01053443,68501.0,68500.0,0.679445]
[1729808086868,0.01053443,68501.0,68500.0,0.53346]
[1729808087298,0.01053443,68501.0,68500.0,0.679445]
[1729808087422,0.01053443,68501.0,68500.0,0.53346]
[1729808087640,0.00301585,68501.0,68500.0,0.53346]
[1729808087846,0.00301585,68501.0,68500.0,0.679445]
[1729808088605,0.01088995,68501.0,68500.0,0.679445]
[1729808088819,0.00301585,68501.0,68500.0,0.679445]
[1729808089037,0.01089229,68501.0,68500.0,0.53346]
[1729808089256,0.00301585,68501.0,68500.0,0.679445]
[1729808089471,0.01089229,68501.0,68500.0,0.679445]
[1729808089703,0.00301585,68501.0,68500.0,0.679445]
[1729808090342,0.14899885,68501.0,68500.0,0.43796]
[1729808090561,0.15687272,68501.0,68500.0,0.43796]
[1729808094665,0.17187272,68501.0,68500.0,0.43796]
[1729808097560,0.34297272,68501.0,68500.0,0.43796]
[1729808097776,0.44297272,68501.0,68500.0,0.43796]
[1729808098895,0.40287272,68501.0,68500.0,0.43796]
[1729808099151,0.29397387,68501.0,68500.0,0.43796]
[1729808099379,0.43995687,68501.0,68500.0,0.43796]
[1729808100268,0.34745687,68501.0,68500.0,0.43796]
[1729808100707,0.42358836,68501.0,68500.0,0.43796]
[1729808100925,0.41858836,68501.0,68500.0,0.43796]
[1729808101406,0.41358836,68501.0,68500.0,0.43796]
[1729808101616,0.42358836,68501.0,68500.0,0.43796]
[1729808101824,0.41358836,68501.0,68500.0,0.43796]
[1729808102035,0.41441436,68501.0,68500.0,0.43796]
[1729808102691,0.41941436,68501.0,68500.0,0.43796]
[1729808102910,0.42441436,68501.0,68500.0,0.43796]
[1729808103384,0.30941436,68501.0,68500.0,0.43796]
[1729808103609,0.15468287,68501.0,68500.0,0.43796]
[1729808104057,0.30941436,68501.0,68500.0,0.43796]
[1729808106811,0.30943355,68501.0,68500.0,0.43796]
[1729808107496,0.31162344,68501.0,68500.0,0.43796]
[1729808108163,0.01090895,68501.0,68500.0,0.53046]
[1729808108385,0.01090895,68501.0,68500.0,0.82694881]
[1729808108873,0.00301589,68501.0,68500.0,0.82694881]
[1729808109966,0.01007489,68501.0,68500.0,0.82694881]
[1729808110184,0.00301589,68501.0,68500.0,0.82694881]
[1729808110398,0.01007489,68501.0,68500.0,0.82694881]
[1729808110595,0.00301589,68501.0,68500.0,0.82694881]
[1729808110816,0.01007661,68501.0,68500.0,0.82694881]
[1729808111022,0.00301589,68501.0,68500.0,0.82694881]
[1729808113491,0.00301589,68501.0,68500.0,0.82860081]
[1729808114286,0.000826,68501.0,68500.0,0.91002687]
[1729808115546,0.000826,68501.0,68500.0,0.93924687]
[1729808115753,0.000826,68501.0,68500.0,0.91002687]
[1729808119435,0.000826,68501.0,68500.0,0.91202687]
[1729808119657,0.000826,68501.0,68500.0,0.91002687]
[1729808119873,0.000826,68501.0,68500.0,0.91202687]
[1729808120359,0.000826,68501.0,68500.0,0.91002687]
[1729808121230,0.000826,68501.0,68500.0,0.91202687]
[1729808122103,0.000826,68501.0,68500.0,0.91164697]
[1729808122315,0.000826,68501.0,68500.0,0.90964697]
[1729808131885,0.000826,68501.0,68500.0,0.91164697]
[1729808132115,0.000826,68501.0,68500.0,1.00392172]
[1729808132341,0.000826,68501.0,68500.0,1.01815797]
[1729808132556,0.000826,68501.0,68500.0,1.12726762]
[1729808132776,0.000826,68501.0,68500.0,1.13726762]
[1729808132988,0.000826,68501.0,68500.0,1.13526762]
[1729808133210,0.000826,68501.0,68500.0,1.13726762]
[1729808133471,0.000826,68501.0,68500.0,1.13526762]
[1729808133913,0.000826,68501.0,68500.0,1.18722134]
[1729808134127,0.000826,68501.0,68500.0,1.13726762]
[1729808134336,0.000826,68501.0,68500.0,1.19043928]
[1729808135421,0.000826,68501.0,68500.0,1.29043928]
[1729808136082,0.000826,68501.0,68500.0,1.18132963]
[1729808136299,0.000826,68501.0,68500.0,1.26855428]
[1729808136725,0.000826,68501.0,68500.0,1.26655428]
[1729808136932,0.000826,68501.0,68500.0,1.26855428]
[1729808138014,0.000826,68501.0,68500.0,1.11387076]
[1729808139118,0.000826,68501.0,68500.0,1.11187076]
[1729808139341,0.000826,68501.0,68500.0,1.11387076]
[1729808139760,0.000826,68501.0,68500.0,1.15937474]
[1729808140827,0.000826,68501.0,68500.0,1.15937234]
[1729808141274,0.000826,68501.0,68500.0,1.15938052]
[1729808141689,0.000826,68501.0,68500.0,1.15738052]
[1729808141914,0.000826,68501.0,68500.0,1.15938052]
[1729808142130,0.000826,68501.0,68500.0,1.07215009]
[1729808142541,0.000826,68501.0,68500.0,1.15738945]
[1729808142744,0.000826,68501.0,68500.0,1.15238945]
[1729808143137,0.000826,68501.0,68500.0,1.14738945]
[1729808143987,0.000826,68501.0,68500.0,0.96179031]
[1729808144186,0.000826,68501.0,68500.0,0.73654697]
[1729808147504,0.000826,68501.0,68500.0,0.78018597]
[1729808148418,0.000826,68501.0,68500.0,0.77935991]
[1729808148636,0.000826,68501.0,68500.0,0.78018597]
[1729808149349,0.000826,68501.0,68500.0,0.73654697]
[1729808149584,0.000826,68501.0,68500.0,0.78018597]
[1729808149793,0.000826,68501.0,68500.0,0.73654697]
[1729808150010,0.000826,68501.0,68500.0,0.78018597]
[1729808150243,0.000826,68501.0,68500.0,0.73654697]
[1729808150731,0.000826,68501.0,68500.0,0.78023585]
[1729808151661,0.000826,68501.0,68500.0,0.73654697]
[1729808152542,0.000826,68501.0,68500.0,0.8020803]
[1729808153900,0.000826,68501.0,68500.0,0.80664394]
[1729808154134,0.000826,68501.0,68500.0,0.8020803]
[1729808158864,0.000826,68501.0,68500.0,0.80214131]
[1729808159088,0.000826,68501.0,68500.0,0.82392474]
[1729808159317,0.000826,68501.0,68500.0,0.73654697]
[1729808159563,0.000826,68501.0,68500.0,0.82392474]
[1729808159790,0.000826,68501.0,68500.0,0.82401053]
[1729808160011,0.000826,68501.0,68500.0,0.80214466]
[1729808160692,0.000826,68501.0,68500.0,0.82857418]
[1729808160914,0.000826,68501.0,68500.0,0.74111062]
[1729808161815,0.000826,68501.0,68500.0,0.80670879]
[1729808163165,0.000826,68501.0,68500.0,0.80214514]
[1729808163850,0.000826,68501.0,68500.0,0.73654697]
[1729808164965,0.000826,68501.0,68500.0,0.80131566]
[1729808165184,0.000826,68501.0,68500.0,0.80214172]
[1729808165626,0.000826,68501.0,68500.0,0.73654697]
[1729808166535,0.000826,68501.0,68500.0,0.80214097]
[1729808167205,0.000826,68501.0,68500.0,0.80670454]
[1729808168107,0.000826,68501.0,68500.0,0.80214097]
[1729808171005,0.000826,68501.0,68500.0,1.08165864]
[1729808171245,0.000826,68501.0,68500.0,1.06601836]
[1729808171464,0.000826,68501.0,68500.0,1.01406464]
[1729808171677,0.000826,68501.0,68500.0,1.00950097]
[1729808172207,0.000826,68501.0,68500.0,1.01150097]
[1729808172405,0.000826,68501.0,68500.0,1.00950097]
[1729808172832,0.000826,68501.0,68500.0,1.06355804]
[1729808174117,0.000826,68501.0,68500.0,0.96200404]
[1729808179048,0.000826,68501.0,68500.0,0.96400404]
[1729808180105,0.000826,68501.0,68500.0,0.96856712]
[1729808180321,0.000826,68501.0,68500.0,1.04652084]
[1729808180748,0.000826,68501.0,68500.0,1.15651998]
[1729808180957,0.000826,68501.0,68500.0,1.1519569]
[1729808181384,0.000826,68501.0,68500.0,1.10200318]
[1729808181815,0.000826,68501.0,68500.0,1.20355718]
[1729808182019,0.000826,68501.0,68500.0,1.1499569]
[1729808182768,0.000826,68501.0,68500.0,1.10200318]
[1729808184586,0.21635226,68513.0,68512.0,0.14678506]
[1729808184801,0.21635226,68513.0,68512.0,0.29728887]
[1729808185011,0.00717442,68513.0,68512.0,0.74011144]
[1729808185222,0.101554,68517.0,68516.0,0.14677706]
[1729808185437,0.101554,68517.0,68516.0,0.29728087]
[1729808185668,0.101554,68517.0,68516.0,0.73468481]
[1729808185669,0.10870641,68517.0,68516.0,0.73468481]
[1729808185900,0.10870641,68517.0,68516.0,0.73551087]
[1729808186379,0.101554,68517.0,68516.0,0.73551087]
[1729808191582,0.101554,68520.0,68518.0,0.145947]
[1729808191815,0.000827,68523.0,68518.0,0.145947]
[1729808191816,0.102381,68523.0,68518.0,0.73549687]
[1729808192066,0.000827,68523.0,68518.0,0.73549687]
[1729808192762,0.000827,68523.0,68518.0,0.77919075]
[1729808193489,0.102381,68523.0,68518.0,0.77915521]
[1729808194593,0.102381,68523.0,68518.0,0.73549687]
[1729808195908,0.101554,68520.0,68518.0,0.73549687]
[1729808196370,0.177854,68520.0,68518.0,0.73549687]
[1729808197075,0.177854,68520.0,68518.0,0.74005948]
[1729808198229,0.000827,68523.0,68518.0,0.74005948]
[1729808198453,0.101554,68522.0,68518.0,0.74005948]
[1729808199126,0.102379,68519.0,68518.0,0.74005948]
[1729808199351,0.324569,68519.0,68518.0,0.44278261]
[1729808199578,0.527677,68519.0,68518.0,0.44278261]
[1729808199797,0.53487271,68519.0,68518.0,0.44278261]
[1729808201182,0.53487271,68519.0,68518.0,0.43822]
[1729808207308,0.53987271,68519.0,68518.0,0.43822]
[1729808207766,0.74642671,68519.0,68518.0,0.08041902]
[1729808208277,0.89693052,68519.0,68518.0,0.08041902]
[1729808208493,0.91993052,68519.0,68518.0,0.08041902]
[1729808208686,0.92193052,68519.0,68518.0,0.08041902]
[1729808208937,1.07243433,68519.0,68518.0,0.08041902]
[1729808210646,0.160981,68502.0,68501.0,0.00456404]
[1729808210860,0.337283,68501.0,68490.0,0.21887426]
[1729808211285,0.34544408,68501.0,68490.0,0.21887426]
[1729808211702,0.54855208,68501.0,68500.0,0.439602]
[1729808213197,0.8695057,68501.0,68500.0,0.439602]
[1729808213428,0.8716957,68501.0,68500.0,0.439602]
[1729808213900,0.72119189,68501.0,68500.0,0.439602]
[1729808214121,0.72119189,68501.0,68500.0,0.08180102]
[1729808214340,0.77455353,68501.0,68500.0,0.03549736]
[1729808215693,0.7834562,68501.0,68500.0,0.03549736]
[1729808216375,0.82100836,68501.0,68500.0,0.03549736]
[1729808218574,0.82100836,68501.0,68500.0,0.03714936]
[1729808224534,0.82300836,68501.0,68500.0,0.03714936]
[1729808224968,0.61981964,68491.0,68490.0,0.21887426]
[1729808225200,0.77032345,68491.0,68490.0,0.21887426]
[1729808225423,0.77730553,68491.0,68490.0,0.21887426]
[1729808225660,0.161019,68484.0,68483.0,0.21887426]
[1729808225878,0.31593464,68484.0,68483.0,0.65693426]
[1729808226117,0.16299298,68484.0,68483.0,0.65693426]
[1729808226344,0.15799298,68484.0,68483.0,0.52836]
[1729808226787,0.16018345,68484.0,68483.0,0.52836]
[1729808230185,0.16018345,68484.0,68483.0,0.530012]
[1729808230628,0.16018345,68484.0,68483.0,0.439712]
[1729808236063,0.16018345,68484.0,68483.0,0.530012]
[1729808237427,0.16018345,68484.0,68483.0,0.439712]
[1729808237660,0.16518345,68484.0,68483.0,0.439712]
[1729808238561,0.16518345,68484.0,68483.0,0.44427805]
[1729808238809,0.17018345,68484.0,68483.0,0.439712]
[1729808239027,0.27018345,68484.0,68483.0,0.439712]
[1729808239471,0.27204068,68484.0,68483.0,0.439712]
[1729808240399,0.42131678,68484.0,68483.0,0.439712]
[1729808244627,0.27204068,68484.0,68483.0,0.439712]
[1729808246234,0.27404068,68484.0,68483.0,0.439712]
[1729808246954,0.27204068,68484.0,68483.0,0.439712]
[1729808249127,0.26704068,68484.0,68483.0,0.439712]
[1729808249331,0.26985021,68484.0,68483.0,0.439712]
[1729808250620,0.35993034,68484.0,68483.0,0.439712]
[1729808250825,0.27204067,68484.0,68483.0,0.439712]
[1729808254260,0.27204067,68484.0,68483.0,0.439712]
[1729808264677,0.59924448,68484.0,68483.0,0.439712]
[1729808264899,0.64285465,68484.0,68483.0,0.439712]
[1729808265125,0.59924448,68484.0,68483.0,0.439712]
[1729808265338,0.74974829,68484.0,68483.0,0.439712]
[1729808265779,0.77474829,68484.0,68483.0,0.439712]